[Event "106th British-ch 2019"]
[Site "Torquay"]
[Date "2019.08.04"]
[Round "9.12"]
[White "Lane, Gary W"]
[Black "Stoyanov, Viktor"]
[Result "1/2-1/2"]
[ECO "B06"]
[WhiteElo "2364"]
[BlackElo "2198"]
[Annotator "NA"]
[PlyCount "192"]
[EventDate "2019.07.27"]
[EventType "swiss"]
[EventCountry "GBR"]
[SourceTitle "playchess.com"]
[Source "ChessBase"]
[SourceQuality "1"]
[TimeControl "40/5400+30:1800+30"]

1. e4 {[%emt 0:00:00]} g6 {[%emt 0:00:29]} 2. d4 {[%emt 0:00:06]} Bg7 {[%emt 0:00:06]} 3. Nc3 {[%emt 0:00:04]} c6 {[%emt 0:00:09]} 4. Bc4 {[%emt 0:00:05]} d6 {[%emt 0:00:06]} 5. Bb3 {[%emt 0:00:03]} Nf6 {[%emt 0:00:22]} 6. f4 {[%emt 0:00:54] B06: Modern Defence} (6. Nf3 O-O 7. O-O Qc7 8. e5 dxe5 9. Nxe5 Nbd7 10. Nd3 Nb6 11. Bf4 Qd8 12. Be5 Bf5 13. Nc5 Nbd7 14. Nxd7 Qxd7 15. Qe2 Be6 {1-0 (60) Vallejo Pons,F (2698)-Anton Guijarro,D (2631) Dubai 2014}) 6... O-O {[%emt 0:01:23]} 7. Nf3 {[%emt 0:01:21]} b5 {[%emt 0:04:58]} 8. a3 {[%emt 0:03:04]} Bb7 {[%emt 0:04:58]} 9. O-O {[%emt 0:00:28]} a5 {[%emt 0:06:27]} 10. e5 {[%emt 0:03:32]} Ne8 $146 {[%emt 0:01:54]} ({Predecessor:} 10... dxe5 11. fxe5 Ng4 12. h3 Nh6 13. Ne4 Na6 14. Bg5 Rc8 {0-1 (48) Cochrane,J-Bonnerjee,M Calcutta 1854}) 11. Qe1 {[%emt 0:06:55]} Na6 {[%emt 0:08:09]} 12. f5 {[%emt 0:11:36]} d5 {[%emt 0:04:41]} 13. g4 {[%emt 0:07:32]} f6 {[%emt 0:06:45]} 14. fxg6 {[%emt 0:17:26]} hxg6 {[%emt 0:01:24]} 15. Nh4 {[%emt 0:00:39]} Qc8 {[%emt 0:05:16]} 16. Nxg6 {[%emt 0:04:35]} Qxg4+ {[%emt 0:00:07]} 17. Qg3 {[%emt 0:00:02]} Qxg3+ {[%emt 0:01:50]} 18. hxg3 {[%emt 0:00:06]} Nec7 {[%emt 0:00:16]} 19. Nxf8 {[%emt 0:00:22]} Rxf8 {[%emt 0:00:11]} 20. Bf4 {[%emt 0:03:53]} Ne6 {[%emt 0:04:01]} 21. Ne2 {[%emt 0:00:16]} fxe5 {[%emt 0:00:54]} 22. Bxe5 {[%emt 0:02:10]} Bxe5 {[%emt 0:00:47]} 23. dxe5 {[%emt 0:00:12]} Nac5 {[%emt 0:00:09]} 24. Rxf8+ {[%emt 0:04:34]} Kxf8 {[%emt 0:00:11]} 25. Rf1+ {[%emt 0:08:13]} Kg7 {[%emt 0:01:10]} 26. g4 {[%emt 0:08:39]} Bc8 {[%emt 0:01:36]} 27. Ba2 {[%emt 0:05:16]} Nd7 {[%emt 0:06:25]} 28. Ng3 {[%emt 0:00:18]} Nxe5 {[%emt 0:00:20]} 29. Nf5+ {[%emt 0:00:06]} Kh8 {[%emt 0:00:31]} 30. Nxe7 {[%emt 0:00:11]} Bd7 {[%emt 0:00:07]} 31. c3 {[%emt 0:05:54]} Nxg4 {[%emt 0:02:36]} 32. Bb1 {[%emt 0:00:31]} Ne5 {[%emt 0:01:28]} 33. Kh1 $2 {[%emt 0:00:58]} (33. Rf5 $18 Ng5 {[#]} 34. Ng6+ $1 {[%mdl 512]} Nxg6 35. Rxg5) 33... Kg7 {[%emt 0:01:03]} 34. Re1 {[%emt 0:01:43]} Kf7 {[%emt 0:01:35]} (34... Nf3 $16 {is a better defense.} 35. Re3 Nd2) 35. Nf5 {[%emt 0:00:36]} Nc4 {[%emt 0:00:40]} 36. Re2 {[%emt 0:00:17]} Kf6 $11 {[%emt 0:01:22]} 37. Nd4 {[%emt 0:01:38]} Nf4 {[%emt 0:02:15]} 38. Rf2 {[%emt 0:00:06]} Ke5 {[%emt 0:00:06]} 39. Kh2 {[%emt 0:01:06]} c5 {[%emt 0:01:03]} 40. Nf3+ {[%emt 0:00:19]} Kd6 {[%emt 0:00:09]} 41. Ng5 {[%emt 0:31:48]} Ne6 {[%emt 0:30:32]} 42. Nxe6 {[%emt 0:00:52]} Bxe6 {[%emt 0:00:09]} 43. Kg3 {[%emt 0:00:46]} b4 {[%emt 0:05:37]} 44. axb4 {[%emt 0:00:00]} axb4 {[%emt 0:00:00]} 45. cxb4 {[%emt 0:00:00]} cxb4 {[%emt 0:00:00]} 46. Kf4 {[%emt 0:00:00]} Bd7 {[%emt 0:00:00]} 47. b3 {[%emt 0:00:00]} Na5 {[%emt 0:00:00]} 48. Bc2 {[%emt 0:00:00]} Be6 {[%emt 0:00:00]} 49. Rg2 {[%emt 0:00:00]} Kc5 {[%emt 0:00:00]} 50. Bd1 {[%emt 0:00:00]} Nc6 {[%emt 0:00:00]} 51. Rc2+ {[%emt 0:00:00]} Kd6 {[%emt 0:00:00]} 52. Ra2 {[%emt 0:00:00]} Kc5 {[%emt 0:00:00]} 53. Ke3 {[%emt 0:00:00]} Bf5 {[%emt 0:00:00]} 54. Ra1 {[%emt 0:00:00]} Be4 {[%emt 0:00:00]} 55. Ra2 {[%emt 0:00:00]} Bg6 {[%emt 0:00:00]} 56. Be2 {[%emt 0:00:00]} Bf5 {[%emt 0:00:00]} 57. Bf3 {[%emt 0:00:22]} Bg6 {[%emt 0:00:00]} 58. Rg2 {[%emt 0:02:29]} Bf7 {[%emt 0:00:00]} 59. Bd1 {[%emt 0:00:05]} Be6 {[%emt 0:00:00]} 60. Rc2+ {[%emt 0:00:52]} Kd6 {[%emt 0:00:00]} 61. Kd2 {[%emt 0:01:38]} Bf5 {[%emt 0:00:00]} 62. Ra2 {[%emt 0:00:12]} Kc5 {[%emt 0:00:00]} 63. Ra4 {[%emt 0:01:38]} Be4 {[%emt 0:00:00]} 64. Ra8 {[%emt 0:00:33]} Kd6 {[%emt 0:01:20]} 65. Ke3 {[%emt 0:01:49]} Kc5 {[%emt 0:00:16]} 66. Rf8 {[%emt 0:00:44]} Kd6 {[%emt 0:00:41]} 67. Rf6+ {[%emt 0:00:56]} Kc5 {[%emt 0:00:05]} 68. Kd2 {[%emt 0:00:20]} Ne5 {[%emt 0:00:49]} 69. Be2 {[%emt 0:00:17]} Nc6 {[%emt 0:00:12]} 70. Kc1 {[%emt 0:00:19]} Nd4 {[%emt 0:00:45]} 71. Bd1 {[%emt 0:00:01]} Nc6 {[%emt 0:00:55]} 72. Kb2 {[%emt 0:00:37]} Ne5 {[%emt 0:00:23]} 73. Be2 {[%emt 0:00:31]} Nc6 {[%emt 0:00:08]} 74. Rf7 {[%emt 0:00:52]} Nd4 {[%emt 0:00:33]} 75. Bd1 {[%emt 0:00:51]} Nc6 {[%emt 0:00:08]} 76. Rb7 {[%emt 0:00:18]} Na5 {[%emt 0:00:11]} 77. Rg7 {[%emt 0:00:48]} Nc6 {[%emt 0:00:12]} 78. Bh5 {[%emt 0:00:20]} Ne5 {[%emt 0:00:41]} 79. Be2 {[%emt 0:00:24]} Nc6 {[%emt 0:00:06]} 80. Rb7 {[%emt 0:00:20]} Nd4 {[%emt 0:00:38]} 81. Bf1 {[%emt 0:00:04]} Bf3 {[%emt 0:00:44]} 82. Rc7+ {[%emt 0:01:26]} Kd6 {[%emt 0:00:34]} 83. Rc1 {[%emt 0:00:07]} Be4 {[%emt 0:00:08]} 84. Ba6 {[%emt 0:00:50]} Nc6 {[%emt 0:00:32]} 85. Rd1 {[%emt 0:00:40]} Kc5 {[%emt 0:00:14]} 86. Be2 {[%emt 0:01:20]} Nd4 {[%emt 0:00:19]} 87. Bf1 {[%emt 0:00:03]} Nc6 {[%emt 0:00:16]} 88. Rd2 {[%emt 0:00:20]} Nd4 {[%emt 0:00:21]} 89. Rh2 {[%emt 0:00:41]} Nc6 {[%emt 0:00:19]} 90. Be2 {[%emt 0:00:21]} Nd4 {[%emt 0:00:40]} 91. Bd1 {[%emt 0:00:14]} Nc6 {[%emt 0:00:07]} 92. Kc1 {[%emt 0:00:07]} Ne5 {[%emt 0:00:22]} 93. Kd2 {[%emt 0:00:11]} Nc6 {[%emt 0:00:08]} 94. Rh8 {[%emt 0:00:11]} Kd6 {[%emt 0:00:14]} 95. Ke3 {[%emt 0:00:12]} Kc5 {[%emt 0:00:11]} 96. Kd2 {[%emt 0:02:46]} Kd6 {[%emt 0:01:51]} 1/2-1/2

[Event "106th British-ch 2019"]
[Site "Torquay"]
[Date "2019.08.04"]
[Round "9.13"]
[White "Bates, Richard A"]
[Black "Brewer, Callum D"]
[Result "1/2-1/2"]
[ECO "D38"]
[WhiteElo "2352"]
[BlackElo "2086"]
[Annotator "NA"]
[PlyCount "38"]
[EventDate "2019.07.27"]
[EventType "swiss"]
[EventCountry "GBR"]
[SourceTitle "playchess.com"]
[Source "ChessBase"]
[SourceQuality "1"]
[TimeControl "40/5400+30:1800+30"]

1. d4 {[%emt 0:00:00]} Nf6 {[%emt 0:00:00]} 2. Nf3 {[%emt 0:00:36]} d5 {[%emt 0:00:00]} 3. c4 {[%emt 0:00:07]} e6 {[%emt 0:00:00]} 4. e3 {[%emt 0:02:07]} Nbd7 {[%emt 0:06:39]} 5. Nc3 {[%emt 0:01:37]} Bb4 {[%emt 0:00:44]} 6. a3 {[%emt 0:04:17]} Bxc3+ {[%emt 0:02:16]} 7. bxc3 {[%emt 0:00:07]} O-O {[%emt 0:02:35]} 8. cxd5 {[%emt 0:03:50]} exd5 {[%emt 0:02:58]} 9. c4 {[%emt 0:00:30]} Re8 {[%emt 0:04:05]} 10. Qb3 {[%emt 0:08:09]} c5 {[%emt 0:09:01]} 11. cxd5 {[%emt 0:07:38]} cxd4 {[%emt 0:00:56]} 12. Nxd4 {[%emt 0:00:05]} Nc5 {[%emt 0:01:17]} 13. Qc4 {[%emt 0:04:27]} b6 {[%emt 0:05:36]} 14. Be2 {[%emt 0:02:02]} Bb7 {[%emt 0:08:04]} 15. O-O {[%emt 0:02:44]} Bxd5 {[%emt 0:03:37]} 16. Qc2 {[%emt 0:05:04]} Be4 {[%emt 0:08:39]} 17. Qd1 {[%emt 0:00:58]} Qe7 {[%emt 0:04:22]} 18. Bb2 {[%emt 0:06:02]} Red8 {[%emt 0:02:55]} 19. Re1 {[%emt 0:06:42]} Rac8 {[%emt 0:01:15]} 1/2-1/2

[Event "106th British-ch 2019"]
[Site "Torquay"]
[Date "2019.08.04"]
[Round "9.14"]
[White "Claridge-Hansen, William"]
[Black "Rocco, Federico"]
[Result "1-0"]
[ECO "A20"]
[WhiteElo "2297"]
[BlackElo "2157"]
[Annotator "ChessBase"]
[PlyCount "85"]
[EventDate "2019.07.27"]
[EventType "swiss"]
[EventCountry "GBR"]
[SourceTitle "playchess.com"]
[Source "ChessBase"]
[SourceQuality "1"]
[TimeControl "40/5400+30:1800+30"]

1. c4 {[%emt 0:00:00]} e5 {[%emt 0:00:00]} 2. g3 {[%emt 0:00:00]} h5 {[%emt 0:00:00]} 3. h4 {[%emt 0:00:40]} Nc6 {[%emt 0:00:00]} 4. Bg2 {[%emt 0:01:16]} Bc5 {[%emt 0:00:00]} 5. Nc3 {[%emt 0:01:13]} d6 {[%emt 0:00:07]} 6. a3 {[%emt 0:04:34]} a5 {[%emt 0:00:17]} 7. e3 {[%emt 0:04:00]} Bg4 {[%emt 0:00:25]} 8. Nge2 {[%emt 0:01:02]} Nge7 {[%emt 0:00:47]} 9. f3 {[%emt 0:03:41]} Bd7 {[%emt 0:01:32]} 10. d4 {[%emt 0:01:22]} Ba7 {[%emt 0:00:24]} 11. d5 {[%emt 0:06:13]} Nb8 {[%emt 0:00:06]} 12. b4 {[%emt 0:09:20]} Nf5 {[%emt 0:03:21]} 13. Qd3 {[%emt 0:01:59]} Na6 {[%emt 0:08:52]} 14. Rb1 {[%emt 0:01:05]} Qf6 {[%emt 0:00:33]} 15. e4 {[%emt 0:04:42]} Nd4 {[%emt 0:01:03]} 16. Nxd4 {[%emt 0:01:21]} Bxd4 {[%emt 0:01:43]} 17. Ne2 {[%emt 0:02:32]} Qg6 {[%emt 0:03:51]} 18. Be3 {[%emt 0:03:44]} Bxe3 {[%emt 0:02:06]} 19. Qxe3 {[%emt 0:00:09]} f5 {[%emt 0:01:23]} 20. f4 {[%emt 0:11:27]} O-O {[%emt 0:13:31]} 21. fxe5 {[%emt 0:02:14]} dxe5 {[%emt 0:00:20]} 22. O-O {[%emt 0:11:37]} axb4 {[%emt 0:03:13]} 23. axb4 {[%emt 0:00:16]} b6 {[%emt 0:00:14]} 24. Qg5 {[%emt 0:04:57]} Qxg5 {[%emt 0:02:03]} 25. hxg5 {[%emt 0:00:01]} fxe4 {[%emt 0:15:22]} 26. Bxe4 {[%emt 0:01:06]} Rxf1+ {[%emt 0:01:13]} 27. Kxf1 {[%emt 0:00:11]} Rf8+ {[%emt 0:00:47]} 28. Kg2 {[%emt 0:00:46]} Bf5 {[%emt 0:00:26]} 29. Nc3 {[%emt 0:00:47]} Kh7 {[%emt 0:00:06]} 30. Bxf5+ {[%emt 0:01:10]} Rxf5 {[%emt 0:00:14]} 31. Ne4 {[%emt 0:00:10]} h4 {[%emt 0:01:02]} 32. b5 {[%emt 0:02:31]} Nb8 {[%emt 0:02:41]} 33. Rh1 {[%emt 0:00:30]} Nd7 {[%emt 0:00:35]} 34. Rxh4+ {[%emt 0:00:55]} Kg6 {[%emt 0:00:32]} 35. Rh8 {[%emt 0:03:04]} Rf8 {[%emt 0:00:20]} 36. Rxf8 {[%emt 0:00:53]} Nxf8 {[%emt 0:00:05]} 37. Kf3 {[%emt 0:02:35]} Kf5 {[%emt 0:00:11]} 38. g4+ {[%emt 0:05:31]} Kg6 {[%emt 0:00:05]} 39. c5 {[%emt 0:04:29]} bxc5 {[%emt 0:01:37]} 40. Nxc5 {[%emt 0:01:09]} Kxg5 {[%emt 0:00:09]} 41. Na6 {[%emt 0:32:27]} Nd7 {[%emt 0:30:58]} 42. Nxc7 {[%emt 0:01:51]} Nc5 {[%emt 0:06:10]} 43. Ne6+ {[%emt 0:01:29]} 1-0

[Event "106th British-ch 2019"]
[Site "Torquay"]
[Date "2019.08.04"]
[Round "9.15"]
[White "Hand, Freddie"]
[Black "Pigott, John C"]
[Result "1/2-1/2"]
[ECO "E60"]
[WhiteElo "2142"]
[BlackElo "2384"]
[Annotator "ChessBase"]
[PlyCount "82"]
[EventDate "2019.07.27"]
[EventType "swiss"]
[EventCountry "GBR"]
[SourceTitle "playchess.com"]
[Source "ChessBase"]
[SourceQuality "1"]
[TimeControl "40/5400+30:1800+30"]

1. d4 {[%emt 0:00:00]} Nf6 {[%emt 0:00:00]} 2. c4 {[%emt 0:00:00]} g6 {[%emt 0:00:12]} 3. f3 {[%emt 0:00:16]} c5 {[%emt 0:00:47]} 4. d5 {[%emt 0:00:23]} d6 {[%emt 0:00:34]} 5. e4 {[%emt 0:00:07]} Bg7 {[%emt 0:00:31]} 6. Ne2 {[%emt 0:02:12]} e6 {[%emt 0:01:24]} 7. Nec3 {[%emt 0:32:26]} exd5 {[%emt 0:05:56]} 8. cxd5 {[%emt 0:00:25]} a6 {[%emt 0:00:48]} 9. a4 {[%emt 0:00:32]} Nh5 {[%emt 0:00:32]} 10. Be3 {[%emt 0:02:31]} f5 {[%emt 0:01:43]} 11. Be2 {[%emt 0:13:44]} f4 {[%emt 0:37:13]} 12. Bf2 {[%emt 0:02:42]} Nd7 {[%emt 0:07:54]} 13. O-O {[%emt 0:15:53]} Qg5 {[%emt 0:06:30]} 14. e5 {[%emt 0:17:31]} Nxe5 {[%emt 0:02:18]} 15. Ne4 {[%emt 0:00:07]} Qe7 {[%emt 0:02:20]} 16. Nbc3 {[%emt 0:01:50]} O-O {[%emt 0:03:52]} 17. Rb1 {[%emt 0:00:24]} Nf6 {[%emt 0:06:42]} 18. b4 {[%emt 0:00:29]} Nxe4 {[%emt 0:00:33]} 19. Nxe4 {[%emt 0:00:36]} c4 {[%emt 0:00:51]} 20. a5 {[%emt 0:01:21]} Bf5 {[%emt 0:01:28]} 21. Rc1 {[%emt 0:03:14]} Rac8 {[%emt 0:06:15]} 22. Re1 {[%emt 0:01:29]} Bxe4 {[%emt 0:02:38]} 23. fxe4 {[%emt 0:00:05]} Qg5 {[%emt 0:01:53]} 24. Kh1 {[%emt 0:00:33]} Rf7 {[%emt 0:03:16]} 25. Bd4 {[%emt 0:00:38]} Qh4 {[%emt 0:01:52]} 26. Rc2 {[%emt 0:01:20]} h5 {[%emt 0:02:44]} 27. Rf1 {[%emt 0:00:56]} Ng4 {[%emt 0:01:10]} 28. Bxg4 {[%emt 0:00:30]} Qxg4 {[%emt 0:00:28]} 29. Bxg7 {[%emt 0:00:48]} Qxd1 {[%emt 0:00:08]} 30. Rxd1 {[%emt 0:00:02]} Kxg7 {[%emt 0:00:07]} 31. Rc3 {[%emt 0:00:05]} Kf6 {[%emt 0:00:47]} 32. Rdc1 {[%emt 0:01:15]} Rfc7 {[%emt 0:00:07]} 33. g3 {[%emt 0:01:00]} fxg3 {[%emt 0:01:05]} 34. Rxg3 {[%emt 0:00:43]} c3 {[%emt 0:00:19]} 35. Rf1+ {[%emt 0:00:20]} Kg7 {[%emt 0:00:50]} 36. Rfg1 {[%emt 0:00:04]} c2 {[%emt 0:00:16]} 37. Rxg6+ {[%emt 0:00:03]} Kh7 {[%emt 0:00:06]} 38. R6g5 {[%emt 0:00:07]} Kh6 {[%emt 0:00:43]} 39. Rg6+ {[%emt 0:01:14]} Kh7 {[%emt 0:00:05]} 40. R6g5 {[%emt 0:00:22]} Kh6 {[%emt 0:00:53]} 41. Rg6+ {[%emt 0:30:37]} Kh7 {[%emt 0:30:08]} 1/2-1/2

[Event "106th British-ch 2019"]
[Site "Torquay"]
[Date "2019.08.04"]
[Round "9.16"]
[White "Smith, Andrew Philip"]
[Black "Moore, Graham J"]
[Result "0-1"]
[ECO "C00"]
[WhiteElo "2147"]
[BlackElo "2264"]
[Annotator "NA"]
[PlyCount "116"]
[EventDate "2019.07.27"]
[EventType "swiss"]
[EventCountry "GBR"]
[SourceTitle "playchess.com"]
[Source "ChessBase"]
[SourceQuality "1"]
[TimeControl "40/5400+30:1800+30"]

1. e4 {[%emt 0:06:02]} e6 {[%emt 0:00:00]} 2. f4 {[%emt 0:00:53]} d5 {[%emt 0:00:09]} 3. e5 {[%emt 0:00:09]} c5 {[%emt 0:00:05]} 4. Nf3 {[%emt 0:00:08]} Nc6 {[%emt 0:00:04]} 5. c3 {[%emt 0:00:10]} Qb6 {[%emt 0:02:51]} 6. Na3 {[%emt 0:00:32] C00: French: Unusual White 2nd moves} Nh6 {[%emt 0:02:21]} 7. Nc2 {[%emt 0:00:54]} Bd7 {[%emt 0:04:59]} 8. b3 {[%emt 0:34:15]} Be7 {[%emt 0:04:00]} 9. Be2 $146 {[%emt 0:11:10]} ({Predecessor:} 9. Bd3 f6 10. c4 fxe5 11. fxe5 Qc7 12. Qe2 Nf7 13. cxd5 Ncxe5 {½-½ (57) Das,S (2251)-Grover,S (2506) Mumbai 2012}) 9... f6 {[%emt 0:05:44]} 10. d4 {[%emt 0:01:34]} cxd4 {[%emt 0:00:17]} 11. cxd4 {[%emt 0:00:15]} Nb4 {[%emt 0:00:46]} 12. O-O {[%emt 0:03:28]} Nxc2 {[%emt 0:02:03]} 13. Qxc2 {[%emt 0:00:08]} Rc8 {[%emt 0:00:05]} 14. Qd3 {[%emt 0:02:51]} O-O {[%emt 0:03:10]} 15. Bb2 {[%emt 0:03:54]} a6 {[%emt 0:02:29]} 16. Rfc1 {[%emt 0:08:13]} fxe5 {[%emt 0:16:53]} 17. fxe5 {[%emt 0:00:42]} Nf5 {[%emt 0:01:03]} 18. Qd2 {[%emt 0:06:28]} Bb5 {[%emt 0:00:49]} 19. Rxc8 {[%emt 0:02:36]} Rxc8 {[%emt 0:00:13]} 20. Bxb5 {[%emt 0:00:10]} Qxb5 {[%emt 0:00:56]} 21. Rc1 {[%emt 0:00:17]} Rf8 {[%emt 0:02:16]} 22. Qe1 {[%emt 0:05:54]} a5 {[%emt 0:02:27]} 23. Rc7 {[%emt 0:07:22]} a4 {[%emt 0:03:39]} 24. Qc3 {[%emt 0:00:30]} Qe2 {[%emt 0:03:00]} 25. Qc2 {[%emt 0:00:45]} Qe3+ {[%emt 0:03:39]} 26. Qf2 {[%emt 0:00:09]} Qd3 {[%emt 0:00:40]} 27. bxa4 {[%emt 0:01:41]} Qb1+ {[%emt 0:00:24]} 28. Bc1 $1 {[%emt 0:00:39]} Bd8 {[%emt 0:01:23]} 29. Rc3 {[%emt 0:01:54]} Nxd4 {[%emt 0:00:52]} 30. Kh1 $19 {[%emt 0:00:37]} (30. Qxd4 $11 Bb6 31. Rc5) 30... Nxf3 {[%emt 0:07:11]} 31. gxf3 {[%emt 0:00:02]} Ba5 {[%emt 0:00:27]} 32. Rc2 {[%emt 0:00:55]} Bb6 {[%emt 0:00:46]} 33. Qe2 {[%emt 0:00:39]} Qb4 {[%emt 0:00:33]} 34. Kg2 {[%emt 0:00:26]} Qd4 {[%emt 0:00:58]} 35. Ba3 {[%emt 0:00:28]} Qg1+ {[%emt 0:01:38]} 36. Kh3 {[%emt 0:00:02]} Ra8 {[%emt 0:00:30]} 37. Bd6 {[%emt 0:00:28]} Qg5 {[%emt 0:00:57]} 38. Rb2 {[%emt 0:00:39]} Rxa4 {[%emt 0:00:22]} 39. Qe1 {[%emt 0:00:43]} Bd8 {[%emt 0:03:42]} 40. Bb4 {[%emt 0:00:42]} Ra6 {[%emt 0:08:27]} 41. Bd6 {[%emt 0:03:56]} h6 {[%emt 0:02:22]} 42. Qb4 {[%emt 0:01:36]} Rb6 {[%emt 0:03:14]} 43. Qd4 {[%emt 0:08:30]} Qh5+ {[%emt 0:00:34]} 44. Kg2 {[%emt 0:00:25]} Qg6+ {[%emt 0:01:07]} 45. Kh3 {[%emt 0:00:16]} Qf5+ {[%emt 0:00:17]} 46. Kg2 {[%emt 0:00:17]} Rc6 {[%emt 0:03:24]} 47. Qf2 {[%emt 0:08:13]} Bb6 {[%emt 0:02:31]} 48. Rxb6 {[%emt 0:07:28]} Rc2 {[%emt 0:00:05]} 49. Rxb7 {[%emt 0:00:09]} Qg5+ {[%emt 0:01:30]} 50. Kf1 {[%emt 0:00:13]} Rxf2+ {[%emt 0:00:39]} 51. Kxf2 {[%emt 0:00:05]} Qd2+ {[%emt 0:00:03]} 52. Kg3 {[%emt 0:00:12]} Qxa2 {[%emt 0:00:05]} 53. Rb4 {[%emt 0:00:21]} Qd2 {[%emt 0:00:39]} 54. Rf4 {[%emt 0:00:42]} d4 {[%emt 0:00:42]} 55. Rf8+ {[%emt 0:02:57]} Kh7 {[%emt 0:00:06]} 56. Rf7 {[%emt 0:00:10]} Qe1+ {[%emt 0:01:14]} 57. Kg2 {[%emt 0:02:06]} Qe2+ {[%emt 0:00:11]} 58. Kg3 {[%emt 0:00:17]} d3 {[%emt 0:02:31]} 0-1

[Event "106th British-ch 2019"]
[Site "Torquay"]
[Date "2019.08.04"]
[Round "9.17"]
[White "Jones, Steven A"]
[Black "Crickmore, Neil Eg"]
[Result "1/2-1/2"]
[ECO "B07"]
[WhiteElo "2117"]
[BlackElo "2187"]
[Annotator "NA"]
[PlyCount "116"]
[EventDate "2019.07.27"]
[EventType "swiss"]
[EventCountry "GBR"]
[SourceTitle "playchess.com"]
[Source "ChessBase"]
[SourceQuality "1"]
[TimeControl "40/5400+30:1800+30"]

1. d4 {[%emt 0:00:00]} Nf6 {[%emt 0:00:00]} 2. Nf3 {[%emt 0:00:15]} g6 {[%emt 0:00:00]} 3. Nbd2 {[%emt 0:00:39]} Bg7 {[%emt 0:00:23]} 4. e4 {[%emt 0:00:34]} O-O {[%emt 0:01:43]} 5. Bd3 {[%emt 0:01:17]} d6 {[%emt 0:00:14]} 6. O-O {[%emt 0:00:32]} c6 {[%emt 0:09:27]} 7. Re1 {[%emt 0:02:06]} Qc7 {[%emt 0:07:58]} 8. a4 {[%emt 0:03:25]} Nbd7 {[%emt 0:10:02]} 9. c3 {[%emt 0:01:35]} e5 {[%emt 0:03:20]} 10. Nc4 {[%emt 0:02:08]} exd4 {[%emt 0:04:05]} 11. Bf4 {[%emt 0:00:59]} Ne8 {[%emt 0:02:39]} 12. cxd4 {[%emt 0:00:38]} Nb6 {[%emt 0:00:09]} 13. h3 {[%emt 0:07:40]} Nxc4 {[%emt 0:07:36]} 14. Bxc4 {[%emt 0:00:07]} Be6 {[%emt 0:00:32]} 15. Qb3 {[%emt 0:00:39]} Bxc4 {[%emt 0:00:13]} 16. Qxc4 {[%emt 0:00:05]} a5 {[%emt 0:01:37]} 17. Rac1 {[%emt 0:11:35]} Qb6 {[%emt 0:03:26]} 18. Re3 {[%emt 0:01:11]} Qd8 {[%emt 0:14:50]} 19. Qb3 {[%emt 0:02:44]} Rb8 {[%emt 0:00:58]} 20. Rce1 {[%emt 0:09:00]} h6 {[%emt 0:01:07]} 21. e5 {[%emt 0:01:16]} Nc7 {[%emt 0:03:52]} 22. R3e2 {[%emt 0:03:11]} Nd5 {[%emt 0:00:40]} 23. Bg3 {[%emt 0:00:22]} dxe5 {[%emt 0:00:10]} 24. Nxe5 {[%emt 0:00:23]} Qb6 {[%emt 0:00:58]} 25. Qf3 {[%emt 0:03:49]} Rbd8 {[%emt 0:02:27]} 26. Rd1 {[%emt 0:00:51]} Qb4 {[%emt 0:01:18]} 27. Ng4 {[%emt 0:04:56]} Qxa4 {[%emt 0:08:43]} 28. Ree1 {[%emt 0:02:01]} Qb4 {[%emt 0:00:58]} 29. Be5 {[%emt 0:01:07]} f6 {[%emt 0:02:07]} 30. Bf4 {[%emt 0:00:23]} Nxf4 {[%emt 0:04:15]} 31. Qxf4 {[%emt 0:01:20]} h5 {[%emt 0:01:09]} 32. Ne3 {[%emt 0:00:02]} Qd6 {[%emt 0:01:23]} 33. Qf3 {[%emt 0:01:15]} Bh6 {[%emt 0:01:22]} 34. Nc4 {[%emt 0:00:23]} Qd5 {[%emt 0:00:08]} 35. Qd3 {[%emt 0:00:08]} f5 {[%emt 0:00:27]} 36. Re5 {[%emt 0:03:30]} Qd7 {[%emt 0:02:43]} 37. Rxa5 {[%emt 0:06:25]} Bg7 {[%emt 0:00:28]} 38. Qg3 {[%emt 0:00:54]} b5 {[%emt 0:02:08]} 39. Ne5 {[%emt 0:01:43]} Qc7 {[%emt 0:01:44]} 40. Raa1 {[%emt 0:00:17]} Bxe5 {[%emt 0:00:45]} 41. Qxe5 {[%emt 0:31:45]} Qf7 {[%emt 0:06:52]} 42. Ra6 {[%emt 0:00:00]} Rd5 {[%emt 0:03:45]} 43. Qf4 {[%emt 0:00:00]} Rc8 {[%emt 0:01:32]} 44. Rda1 {[%emt 0:00:00]} Kh7 {[%emt 0:03:38]} 45. Ra8 {[%emt 0:00:00]} Rxa8 {[%emt 0:03:29]} 46. Rxa8 {[%emt 0:00:00]} Qg7 {[%emt 0:00:13]} 47. Rc8 {[%emt 0:00:00]} Rxd4 {[%emt 0:01:11]} 48. Qc7 {[%emt 0:00:00]} Rd1+ {[%emt 0:03:34]} 49. Kh2 {[%emt 0:00:00]} Qxc7+ {[%emt 0:00:05]} 50. Rxc7+ {[%emt 0:00:00]} Kh6 {[%emt 0:00:02]} 51. Rxc6 {[%emt 0:00:00]} Rd2 {[%emt 0:00:07]} 52. f4 {[%emt 0:00:00]} Rxb2 {[%emt 0:00:50]} 53. h4 {[%emt 0:00:02]} b4 {[%emt 0:07:25]} 54. Rc7 {[%emt 0:00:24]} b3 {[%emt 0:00:27]} 55. Rb7 {[%emt 0:00:10]} Rb1 {[%emt 0:00:11]} 56. g3 {[%emt 0:00:29]} Rb2+ {[%emt 0:00:40]} 57. Kh3 {[%emt 0:00:22]} Rb1 {[%emt 0:00:07]} 58. Kh2 {[%emt 0:00:09]} Rb2+ {[%emt 0:00:24]} 1/2-1/2

[Event "106th British-ch 2019"]
[Site "Torquay"]
[Date "2019.08.04"]
[Round "9.18"]
[White "Starley, Robert"]
[Black "Ogunshola, Olugbemiga (Ben)"]
[Result "1/2-1/2"]
[ECO "C66"]
[WhiteElo "2058"]
[BlackElo "2172"]
[Annotator "NA"]
[PlyCount "32"]
[EventDate "2019.07.27"]
[EventType "swiss"]
[EventCountry "GBR"]
[SourceTitle "playchess.com"]
[Source "ChessBase"]
[SourceQuality "1"]
[TimeControl "40/5400+30:1800+30"]

1. e4 {[%emt 0:00:00]} e5 {[%emt 0:00:00]} 2. Nf3 {[%emt 0:00:00]} Nc6 {[%emt 0:00:00]} 3. Bb5 {[%emt 0:00:00]} d6 {[%emt 0:01:15]} 4. d4 {[%emt 0:00:00]} Bd7 {[%emt 0:00:39]} 5. d5 {[%emt 0:01:25]} Nb8 {[%emt 0:00:14]} 6. Bxd7+ {[%emt 0:00:14]} Nxd7 {[%emt 0:00:03]} 7. O-O {[%emt 0:00:29]} Ngf6 {[%emt 0:00:42]} 8. Re1 {[%emt 0:00:37]} Be7 {[%emt 0:01:00]} 9. c4 {[%emt 0:00:41]} O-O {[%emt 0:00:37]} 10. Nc3 {[%emt 0:00:46]} a5 {[%emt 0:00:19]} 11. h3 {[%emt 0:01:48]} Nc5 {[%emt 0:00:45]} 12. Qc2 {[%emt 0:00:47]} Qd7 {[%emt 0:01:42]} 13. Be3 {[%emt 0:01:19]} b6 {[%emt 0:00:12]} 14. b3 {[%emt 0:03:26]} Nh5 {[%emt 0:00:56]} 15. a3 {[%emt 0:02:57]} f5 {[%emt 0:00:55]} 16. exf5 {[%emt 0:09:07]} Rxf5 {[%emt 0:03:25]} 1/2-1/2